[Event "44th Chess Olympiad Women 2022"]
[Site "Chennai"]
[Date "2022.08.02"]
[Round "5.34"]
[White "Silva, Ana Ines Teixeira Da"]
[Black "Lopez L., Dairyn D."]
[Result "1-0"]
[ECO "B06"]
[WhiteElo "1775"]
[BlackElo "1574"]
[Annotator "NA RC COMBH"]
[PlyCount "73"]
[EventDate "2022.07.29"]
[EventType "team-tourn"]
[EventCountry "IND"]
[SourceTitle "playchess.com"]
[Source "ChessBase"]
[SourceQuality "1"]
[WhiteTeam "Portugal"]
[BlackTeam "Guatemala"]
[WhiteTeamCountry "POR"]
[BlackTeamCountry "GUA"]
[TimeControl "40/5400+30:1800+30"]

1. e4 {[%emt 0:00:03]} g6 {[%emt 0:00:14]} 2. d4 {[%emt 0:00:07]} Bg7 {[%emt 0:00:06]} 3. Nc3 {[%emt 0:00:11]} d6 {[%emt 0:00:18]} 4. Be3 {[%emt 0:00:27]} Nd7 {[%emt 0:00:55]} 5. f4 {[%emt 0:01:27]} c5 {[%emt 0:02:15]} 6. Nf3 {[%emt 0:02:06]} Nh6 {[%emt 0:04:15]} 7. h3 {[%emt 0:03:29]} a6 {[%emt 0:06:06]} 8. a4 {[%emt 0:08:22]} e6 {[%emt 0:11:46]} 9. Be2 {[%emt 0:06:30]} b6 {[%emt 0:12:09]} 10. O-O {[%emt 0:03:21]} O-O {[%emt 0:00:59]} 11. Qd2 {[%emt 0:02:13]} f5 {[%emt 0:00:44]} 12. Ng5 {[%emt 0:24:50]} Qe7 {[%emt 0:07:43]} 13. Bc4 {[%emt 0:02:00]} Nf6 {[%emt 0:07:25]} 14. e5 {[%emt 0:04:23]} dxe5 {[%emt 0:02:00]} 15. dxe5 {[%emt 0:01:54]} Nh5 {[%emt 0:08:49]} 16. Rad1 {[%emt 0:03:53]} Re8 {[%emt 0:05:30]} 17. Qd6 {[%emt 0:04:02]} Bf8 {[%emt 0:06:55]} 18. Qxe7 {[%emt 0:04:47]} Rxe7 {[%emt 0:00:47]} 19. Rd6 {[%emt 0:02:54]} Nf7 {[%emt 0:06:43]} 20. Nxf7 {[%emt 0:00:15]} Kxf7 {[%emt 0:01:16]} 21. Rxb6 {[%emt 0:00:19]} Rc7 {[%emt 0:01:47]} 22. Rd1 {[%emt 0:01:30]} Be7 {[%emt 0:00:35]} 23. a5 {[%emt 0:03:48]} Ng7 {[%emt 0:01:28]} 24. Nb1 {[%emt 0:08:47]} Nh5 {[%emt 0:00:19]} 25. Nd2 {[%emt 0:02:20]} Ng7 {[%emt 0:00:31]} 26. Bb3 {[%emt 0:00:32]} Rd7 {[%emt 0:05:57]} 27. c3 {[%emt 0:00:43]} Rd3 {[%emt 0:01:19]} 28. Nc4 {[%emt 0:01:25]} Rxd1+ {[%emt 0:00:33]} 29. Bxd1 {[%emt 0:00:06]} Kf8 {[%emt 0:02:00]} 30. Nd6 {[%emt 0:00:48]} Bd7 {[%emt 0:00:48]} 31. Bf3 {[%emt 0:02:25]} Rd8 {[%emt 0:01:02]} 32. Bxc5 {[%emt 0:01:37]} Ne8 {[%emt 0:00:35]} 33. Rxa6 {[%emt 0:01:28]} Bc8 {[%emt 0:01:08]} 34. Rb6 {[%emt 0:00:27]} Bd7 {[%emt 0:01:01]} 35. b4 {[%emt 0:00:19]} Nc7 {[%emt 0:00:23]} 36. a6 {[%emt 0:00:52]} Bxd6 {[%emt 0:00:59]} 37. Bxd6+ {[%emt 0:00:07]} 1-0

[Event "44th Chess Olympiad Women 2022"]
[Site "Chennai"]
[Date "2022.08.02"]
[Round "5.34"]
[White "Natareno, Elvia"]
[Black "Silva, Mariana Sofia T."]
[Result "0-1"]
[ECO "A08"]
[WhiteElo "1581"]
[BlackElo "1912"]
[Annotator "TA"]
[PlyCount "116"]
[EventDate "2022.07.29"]
[EventType "team-tourn"]
[EventCountry "IND"]
[SourceTitle "playchess.com"]
[Source "ChessBase"]
[SourceQuality "1"]
[WhiteTeam "Guatemala"]
[BlackTeam "Portugal"]
[WhiteTeamCountry "GUA"]
[BlackTeamCountry "POR"]
[TimeControl "40/5400+30:1800+30"]

{[%evp 9,116,-39,-31,-30,-37,-54,-57,-64,-62,-58,-61,-61,-54,-80,-79,-108,-79,-74,-30,-68,-57,-92,-45,-85,-54,-79,16,-58,-38,-49,0,-58,-58,-69,-56,-68,0,0,0,-7,0,-107,-96,-91,-106,-181,-185,-166,-175,-253,-238,-451,-436,-389,-270,-374,-131,-176,-29,-1488,-1435,-1643,-494,-520,-483,-474,-464,-469,-464,-571,-575,-575,-514,-702,-697,-662,-500,-479,-490,-566,-566,-544,-555,-607,-595,-639,-630,-678,-644,-625,-612,-1027,-933,-1045,-791,-766,-723,-630,-316,-314,-262,-2762,-2436,-29979,-29978,-29983,-29978,-29987,-29988]} 1. Nf3 {[%emt 0:00:09]} d5 {[%emt 0:00:06]} 2. g3 {[%emt 0:00:33]} c5 {[%emt 0:00:06]} 3. Bg2 {[%emt 0:00:19]} Nc6 {[%emt 0:00:06]} 4. b3 {[%emt 0:01:55]} e5 {[%emt 0:01:28]} 5. d3 {[%emt 0:00:16]} Be7 {[%emt 0:04:37]} 6. Bb2 {[%emt 0:00:29] A08: King's Indian Attack.} f6 {[%emt 0:01:39]} 7. O-O {[%emt 0:03:01]} Be6 {[%emt 0:00:08]} 8. Nbd2 {[%emt 0:02:24] [#] Black is slightly better.} Qd7 $146 {[%emt 0:04:06]} ({Predecessor:} 8... Nh6 9. e3 O-O 10. a3 Qd7 11. c4 d4 12. exd4 Nxd4 13. Nxd4 exd4 14. Qe2 Rfe8 {1-0 (34) Wuersig,M (1576)-Wilhelm,R (1659) Playchess.com INT 2021}) 9. c4 {[%emt 0:02:18]} d4 {[%emt 0:02:00]} 10. Ne4 {[%emt 0:04:07]} Nh6 {[%emt 0:02:53]} 11. Ba3 {[%emt 0:04:10]} b6 {[%emt 0:00:24]} 12. Ne1 {[%emt 0:04:43]} Rc8 {[%emt 0:01:44]} 13. Nc2 {[%emt 0:08:36]} a5 {[%emt 0:01:26]} 14. Bc1 {[%emt 0:00:25]} Nf7 {[%emt 0:01:33]} 15. f4 {[%emt 0:09:07] [#]} O-O {[%emt 0:08:33]} (15... h5 $1 $17) 16. a3 {[%emt 0:07:56]} Nd6 {[%emt 0:14:31]} 17. Bd2 {[%emt 0:05:36]} Nf5 {[%emt 0:05:21]} (17... Nxe4 $17 18. Bxe4 exf4 19. Bxf4 Kh8) 18. Rb1 {[%emt 0:05:51]} (18. g4 $11) 18... exf4 $15 {[%emt 0:02:18]} 19. Bxf4 {[%emt 0:02:54]} Ne5 {[%emt 0:04:15]} (19... Kh8 $15) 20. Qd2 {[%emt 0:06:13]} (20. b4 $11) 20... Ng6 {[%emt 0:01:44]} 21. Rb2 {[%emt 0:06:14]} Nxf4 {[%emt 0:00:31]} 22. Qxf4 {[%emt 0:00:18]} Bd8 {[%emt 0:03:41]} (22... h5 $15) 23. b4 $11 {[%emt 0:02:53]} Bc7 {[%emt 0:03:40]} 24. Qf2 {[%emt 0:05:32]} Ne3 {[%emt 0:04:09]} 25. Rfb1 {[%emt 0:01:44]} (25. bxa5 $11 Nxf1 26. axb6) 25... Nxg2 $17 {[%emt 0:01:59] Black is much more active. The white rooks are badly placed.} 26. Qxg2 {[%emt 0:02:12]} Bh3 {[%emt 0:00:26]} 27. Qf3 {[%emt 0:01:09]} (27. Qh1 $17 f5 28. Nf2) 27... Bg4 $19 {[%emt 0:04:50] A strong pair of Bishops.} 28. Qg2 {[%emt 0:01:02]} f5 $36 {[%emt 0:02:46][%mdl 2048] Black is really pushing.} 29. Ng5 {[%emt 0:03:51]} (29. Nf2 $142) 29... h6 {[%emt 0:01:37]} 30. Nf3 {[%emt 0:00:21]} (30. bxc5 bxc5 31. Nh3) 30... f4 {[%emt 0:01:25]} 31. bxc5 {[%emt 0:00:43]} fxg3 {[%emt 0:03:38] Strongly threatening ...Bh3.} 32. hxg3 {[%emt 0:01:23]} ({Don't play} 32. cxb6 Bh3 33. bxc7 Bxg2 34. Kxg2 gxh2 35. Ncxd4 Rxc7 36. Kxh2 Qd6+ 37. Kg2 Re7 $19) 32... Bh3 $2 {[%emt 0:00:53]} (32... bxc5 $19 {is more deadly.} 33. Rb7 Bh3) 33. c6 $17 {[%emt 0:01:27] [#]} Qg4 {[%emt 0:00:42]} ({Black should try} 33... Qe6 $1 $19 34. Qf2 (34. Nfxd4 $2 Qg4 $19) 34... Qxc6) 34. Ne5 $2 {[%emt 0:03:10][%mdl 8192] This move loses the game for White.} Bxe5 $19 {[%emt 0:03:56]} 35. Qd5+ {[%emt 0:00:07]} Qe6 {[%emt 0:00:05]} (35... Kh8 $142 36. Qxe5 Rce8) 36. Rxb6 {[%emt 0:00:24]} Bxg3 {[%emt 0:01:23]} 37. Qxe6+ {[%emt 0:01:01]} Bxe6 {[%emt 0:00:02]} 38. Kg2 {[%emt 0:00:09]} Bc7 {[%emt 0:01:36]} 39. R6b5 {[%emt 0:00:23]} Rf4 {[%emt 0:00:44]} 40. Ne1 {[%emt 0:02:03]} Rg4+ {[%emt 0:03:44]} 41. Kf2 {[%emt 0:31:02]} Bg3+ {[%emt 0:30:36]} 42. Kf1 {[%emt 0:00:22]} Bxe1 {[%emt 0:05:40]} 43. Kxe1 {[%emt 0:00:32]} Rg1+ {[%emt 0:00:10]} 44. Kd2 {[%emt 0:00:05]} Rxb1 {[%emt 0:00:03]} 45. Rxb1 {[%emt 0:00:08]} Rxc6 {[%emt 0:00:03][%mdl 4096] Endgame KRB-KR} 46. Rb5 {[%emt 0:00:17]} a4 {[%emt 0:02:24]} 47. Ra5 {[%emt 0:00:19]} g5 {[%emt 0:00:57]} 48. e3 {[%emt 0:00:12]} dxe3+ {[%emt 0:01:37]} 49. Kxe3 {[%emt 0:00:09]} Bd7 {[%emt 0:00:14]} 50. Ke4 {[%emt 0:00:38]} Kf7 {[%emt 0:01:18]} 51. c5 {[%emt 0:00:08]} Rf6 {[%emt 0:00:00]} 52. Ra7 {[%emt 0:00:00]} Ke7 {[%emt 0:00:00] And now ...g4 would win.} 53. d4 {[%emt 0:00:00]} g4 {[%emt 0:00:00][%cal Bg5g4,Bg4g3,Bg3g2][%mdl 32] Threatens to win with ...g3.} 54. d5 {[%emt 0:00:00]} Kd8 {[%emt 0:00:00] White must now prevent ...g3.} 55. Ke5 $2 {[%emt 0:00:00]} (55. c6 Bxc6 56. dxc6) 55... Rg6 {[%emt 0:00:00] ( -> ...g3)} 56. d6 {[%emt 0:00:00]} g3 {[%emt 0:00:00] Black mates.} 57. Ra8+ {[%emt 0:00:00]} Bc8 {[%emt 0:00:00]} 58. c6 {[%emt 0:00:00]} g2 {[%emt 0:00:00] Weighted Error Value: White=0.69/Black=0.40} 0-1

[Event "44th Chess Olympiad Women 2022"]
[Site "Chennai"]
[Date "2022.08.02"]
[Round "5.35"]
[White "Smith, Olivia"]
[Black "Ptacnikova, Lenka"]
[Result "0-1"]
[ECO "B48"]
[WhiteElo "2038"]
[BlackElo "2066"]
[Annotator "NA RC"]
[PlyCount "92"]
[EventDate "2022.07.29"]
[EventType "team-tourn"]
[EventCountry "IND"]
[SourceTitle "playchess.com"]
[Source "ChessBase"]
[SourceQuality "1"]
[WhiteTeam "Wales"]
[BlackTeam "Iceland"]
[WhiteTeamCountry "WLS"]
[BlackTeamCountry "ISL"]
[TimeControl "40/5400+30:1800+30"]

1. e4 {[%emt 0:00:01]} c5 {[%emt 0:00:07]} 2. Nf3 {[%emt 0:00:07]} e6 {[%emt 0:00:12]} 3. d4 {[%emt 0:00:19]} cxd4 {[%emt 0:00:05]} 4. Nxd4 {[%emt 0:00:04]} Nc6 {[%emt 0:00:29]} 5. Nc3 {[%emt 0:00:34]} Qc7 {[%emt 0:00:20]} 6. Be3 {[%emt 0:01:45]} a6 {[%emt 0:00:09]} 7. a3 {[%emt 0:00:56]} Nf6 {[%emt 0:03:48]} 8. Nxc6 {[%emt 0:13:05]} bxc6 {[%emt 0:04:27]} 9. f4 {[%emt 0:04:21]} d5 {[%emt 0:02:51]} 10. Qf3 {[%emt 0:06:24]} Rb8 {[%emt 0:16:37]} 11. Bd4 {[%emt 0:05:22]} Nd7 {[%emt 0:09:07]} 12. exd5 {[%emt 0:02:43]} cxd5 {[%emt 0:01:17]} 13. Bd3 {[%emt 0:04:34]} Nf6 {[%emt 0:07:16]} 14. O-O {[%emt 0:01:47]} Bc5 {[%emt 0:00:58]} 15. Bxc5 {[%emt 0:00:47]} Qxc5+ {[%emt 0:00:04]} 16. Kh1 {[%emt 0:00:12]} O-O {[%emt 0:02:32]} 17. b4 {[%emt 0:01:24]} Qc7 {[%emt 0:07:27]} 18. Na4 {[%emt 0:13:49]} a5 {[%emt 0:10:13]} 19. Rab1 {[%emt 0:00:39]} axb4 {[%emt 0:01:27]} 20. axb4 {[%emt 0:00:06]} Bd7 {[%emt 0:01:35]} 21. Nc5 {[%emt 0:01:21]} Bb5 {[%emt 0:00:33]} 22. h3 {[%emt 0:06:38]} Rb6 {[%emt 0:02:14]} 23. Ra1 {[%emt 0:14:10]} Qc6 {[%emt 0:05:21]} 24. Ra2 {[%emt 0:05:49]} Bxd3 {[%emt 0:00:40]} 25. Nxd3 {[%emt 0:00:14]} Ne4 {[%emt 0:01:00]} 26. Rfa1 {[%emt 0:00:47]} Rc8 {[%emt 0:06:56]} 27. Kh2 {[%emt 0:02:24]} Qd6 {[%emt 0:03:06]} 28. Qh5 {[%emt 0:09:21]} Nf6 {[%emt 0:08:27]} 29. Qe2 {[%emt 0:00:45]} h6 {[%emt 0:00:51]} 30. Ra8 {[%emt 0:00:48]} Rbb8 {[%emt 0:00:17]} 31. R8a6 {[%emt 0:00:28]} Qc7 {[%emt 0:00:19]} 32. R1a2 {[%emt 0:00:30]} Ne4 {[%emt 0:01:40]} 33. Ra7 {[%emt 0:00:38]} Rb7 {[%emt 0:01:06]} 34. Rxb7 {[%emt 0:00:08]} Qxb7 {[%emt 0:00:04]} 35. Qe3 {[%emt 0:00:26]} Qb8 {[%emt 0:01:00]} 36. Ne5 {[%emt 0:01:40]} Qxb4 {[%emt 0:00:55]} 37. Qa7 {[%emt 0:01:23]} Nd6 {[%emt 0:00:34]} 38. Ra4 {[%emt 0:00:14]} Qc5 {[%emt 0:00:48]} 39. Qa6 {[%emt 0:00:56]} Qxc2 {[%emt 0:01:25]} 40. Ra2 {[%emt 0:02:03]} Qc7 {[%emt 0:00:43]} 41. Qe2 {[%emt 0:07:01]} Qc1 {[%emt 0:01:40]} 42. Qg4 {[%emt 0:04:27]} Qf1 {[%emt 0:03:15]} 43. Nd7 {[%emt 0:13:34]} Ne4 {[%emt 0:04:54]} 44. Rb2 {[%emt 0:04:43]} Kh7 {[%emt 0:01:31]} 45. Qh4 {[%emt 0:01:07]} Rc1 {[%emt 0:01:41]} 46. Nf8+ {[%emt 0:00:59]} Kg8 {[%emt 0:00:08]} 0-1

[Event "44th Chess Olympiad Women 2022"]
[Site "Chennai"]
[Date "2022.08.02"]
[Round "5.35"]
[White "Johannsdottir, Johanna Bjorg"]
[Black "Chong, Kimberly"]
[Result "0-1"]
[ECO "B01"]
[WhiteElo "1976"]
[BlackElo "1741"]
[Annotator "TA"]
[PlyCount "76"]
[EventDate "2022.07.29"]
[EventType "team-tourn"]
[EventCountry "IND"]
[SourceTitle "playchess.com"]
[Source "ChessBase"]
[SourceQuality "1"]
[WhiteTeam "Iceland"]
[BlackTeam "Wales"]
[WhiteTeamCountry "ISL"]
[BlackTeamCountry "WLS"]
[TimeControl "40/5400+30:1800+30"]

{[%evp 14,76,56,50,66,63,69,21,66,44,54,38,35,35,62,64,63,52,50,18,37,0,0,0,16,12,17,13,13,-19,0,-11,-11,-18,42,0,46,-6,-14,-98,-87,-209,-202,-275,-268,-279,-259,-257,-193,-463,-342,-583,-579,-558,-556,-995,-1008,-1009,-1002,-1002,-1002,-989,-889,-910,-889]} 1. e4 {[%emt 0:00:02]} d5 {[%emt 0:00:08]} 2. exd5 {[%emt 0:00:04]} Nf6 {[%emt 0:00:04]} 3. Nf3 {[%emt 0:00:32]} Nxd5 {[%emt 0:00:18]} 4. d4 {[%emt 0:00:11]} g6 {[%emt 0:01:20]} 5. c4 {[%emt 0:00:12]} Nb6 {[%emt 0:00:25]} 6. Nc3 {[%emt 0:00:11]} Bg7 {[%emt 0:00:14]} 7. c5 {[%emt 0:00:06]} Nd5 {[%emt 0:00:14]} 8. Bc4 {[%emt 0:00:05]} e6 {[%emt 0:02:37] B01: Scandinavian Defence.} 9. O-O {[%emt 0:02:03]} ({Don't play} 9. Bxd5 exd5 10. Qe2+ (10. Bg5 f6 $11) 10... Be6 $11) 9... O-O {[%emt 0:02:14]} 10. Qb3 {[%emt 0:02:01]} (10. Bg5 $14 {feels stronger.} f6 11. Bd2) 10... c6 {[%emt 0:07:21] The position is equal.} 11. Ne4 {[%emt 0:07:40]} b6 {[%emt 0:12:26]} 12. Re1 {[%emt 0:07:57] [#]} bxc5 $146 {[%emt 0:09:53]} ({Predecessor:} 12... Nd7 13. Bg5 Qc7 14. Rac1 bxc5 15. Bxd5 cxd5 16. Nxc5 Nxc5 17. Rxc5 Qb6 18. Qxb6 axb6 19. Rb5 Rxa2 20. Rxb6 Ra4 21. Be7 Re8 22. Bc5 Rc4 23. b4 {½-½ (23) Laflamme,S (1982)-Pare,M (2038) Ste Foy 2018}) 13. dxc5 {[%emt 0:00:33]} Nd7 {[%emt 0:02:35]} 14. Bg5 {[%emt 0:08:57]} Qa5 {[%emt 0:04:57]} 15. Bd2 {[%emt 0:02:46]} Qc7 {[%emt 0:04:03]} 16. Qc2 {[%emt 0:01:21]} Rb8 {[%emt 0:05:25]} 17. Bb3 {[%emt 0:04:16]} a5 {[%emt 0:03:28][%cal Oa5a4]} 18. Rab1 {[%emt 0:01:03]} Nb4 {[%emt 0:02:17]} 19. Bxb4 {[%emt 0:01:00]} Rxb4 {[%emt 0:02:52]} 20. a3 {[%emt 0:03:21]} Rb8 {[%emt 0:01:51]} 21. Ba4 {[%emt 0:04:50]} Ba6 {[%emt 0:03:20]} 22. b4 {[%emt 0:04:14]} axb4 {[%emt 0:09:58]} 23. axb4 {[%emt 0:00:26]} Bb5 {[%emt 0:00:39]} (23... Nf6 $11) 24. Bb3 {[%emt 0:00:44]} Qf4 {[%emt 0:01:37]} (24... Ne5 $11 25. Re3 Nxf3+ 26. Rxf3 Be5) 25. Nd6 {[%emt 0:08:52]} (25. Re3 $14) 25... Qxb4 $11 {[%emt 0:11:03]} 26. Ne4 {[%emt 0:08:27]} (26. Nxf7 $11 Qc3 27. N7e5 Qxc2 28. Bxc2 Nxc5 29. Nd4) 26... Qa5 $17 {[%emt 0:01:27]} 27. Nfg5 {[%emt 0:11:33] [#] This move loses the game for White.} (27. h4 $17) 27... Ne5 $1 $19 {[%emt 0:01:46] White must now prevent ...Bd3.} 28. Rbd1 {[%emt 0:00:13] [#] Against Bd3} Bd3 $1 {[%emt 0:01:35][%mdl 512]} 29. Qa2 {[%emt 0:00:46]} (29. Qd2 Qxd2) 29... Qxa2 {[%emt 0:00:16]} 30. Bxa2 {[%emt 0:00:06]} Bc2 {[%emt 0:03:10] A strong pair of Bishops.} 31. Rd6 {[%emt 0:04:07]} (31. Rd2 Rb2 32. Rc1 Rxa2 33. Rdxc2 Rxc2 34. Rxc2) 31... h6 {[%emt 0:02:57]} 32. f4 $2 {[%emt 0:10:55]} (32. Nxf7 {was necessary.} Rxf7 33. h3) 32... Nd3 {[%emt 0:00:14] Black is clearly winning.} 33. Re2 {[%emt 0:00:22]} Rb2 {[%emt 0:01:16][%cal Bb8b2,Bb2a2,Ba2a1][%mdl 32]} 34. Nxe6 {[%emt 0:02:47]} Rxa2 {[%emt 0:00:33]} 35. Rxd3 {[%emt 0:01:09]} Ra1+ {[%emt 0:00:24]} 36. Kf2 {[%emt 0:00:26]} Bxd3 {[%emt 0:00:13]} 37. Nxf8 {[%emt 0:02:13]} Bxe2 {[%emt 0:00:26]} 38. Kxe2 {[%emt 0:01:05]} Kxf8 {[%emt 0:00:14] Weighted Error Value: White=0.60/Black=0.19 (very precise)} 0-1

[Event "44th Chess Olympiad Women 2022"]
[Site "Chennai"]
[Date "2022.08.02"]
[Round "5.35"]
[White "Acevedo Mendez, Lisseth"]
[Black "Bagga, Khushi"]
[Result "1-0"]
[ECO "D02"]
[WhiteElo "1784"]
[BlackElo "1328"]
[Annotator "NA RC COMBH"]
[PlyCount "45"]
[EventDate "2022.07.29"]
[EventType "team-tourn"]
[EventCountry "IND"]
[SourceTitle "playchess.com"]
[Source "ChessBase"]
[SourceQuality "1"]
[WhiteTeam "Iceland"]
[BlackTeam "Wales"]
[WhiteTeamCountry "ISL"]
[BlackTeamCountry "WLS"]
[TimeControl "40/5400+30:1800+30"]

1. d4 {[%emt 0:00:02]} d5 {[%emt 0:00:02]} 2. Bf4 {[%emt 0:00:12]} e6 {[%emt 0:00:11]} 3. Nf3 {[%emt 0:00:16]} c5 {[%emt 0:00:29]} 4. e3 {[%emt 0:01:06]} Nf6 {[%emt 0:01:30]} 5. c3 {[%emt 0:01:07]} Be7 {[%emt 0:01:13]} 6. Nbd2 {[%emt 0:01:10]} O-O {[%emt 0:00:50]} 7. h3 {[%emt 0:00:21]} Nc6 {[%emt 0:00:46]} 8. Bd3 {[%emt 0:00:25]} c4 {[%emt 0:04:00]} 9. Bc2 {[%emt 0:00:18]} b5 {[%emt 0:02:42]} 10. a3 {[%emt 0:01:31]} Bb7 {[%emt 0:00:20]} 11. Qe2 {[%emt 0:02:11]} h6 {[%emt 0:00:56]} 12. g4 {[%emt 0:02:40]} Bd6 {[%emt 0:04:06]} 13. Rg1 {[%emt 0:20:39]} Ne8 {[%emt 0:15:57]} 14. g5 {[%emt 0:03:40]} hxg5 {[%emt 0:01:32]} 15. Nxg5 {[%emt 0:00:44]} Bxf4 {[%emt 0:02:34]} 16. exf4 {[%emt 0:03:53]} Qd6 {[%emt 0:12:19]} 17. Qh5 {[%emt 0:04:28]} Nf6 {[%emt 0:06:32]} 18. Qh4 {[%emt 0:04:33]} g6 {[%emt 0:03:14]} 19. Qh6 {[%emt 0:09:21]} Rfd8 {[%emt 0:06:31]} 20. Nxf7 {[%emt 0:02:38]} Kxf7 {[%emt 0:02:01]} 21. Qxg6+ {[%emt 0:00:07]} Ke7 {[%emt 0:01:19]} 22. Qg7+ {[%emt 0:00:05]} Ke8 {[%emt 0:00:30]} 23. Bg6# {[%emt 0:00:04]} 1-0

[Event "44th Chess Olympiad Women 2022"]
[Site "Chennai"]
[Date "2022.08.02"]
[Round "5.35"]
[White "Ray, Hiya"]
[Black "Thorsteinsdottir, Hallgerdur"]
[Result "0-1"]
[ECO "B01"]
[WhiteElo "1586"]
[BlackElo "1934"]
[Annotator "TA"]
[PlyCount "106"]
[EventDate "2022.07.29"]
[EventType "team-tourn"]
[EventCountry "IND"]
[SourceTitle "playchess.com"]
[Source "ChessBase"]
[SourceQuality "1"]
[WhiteTeam "Wales"]
[BlackTeam "Iceland"]
[WhiteTeamCountry "WLS"]
[BlackTeamCountry "ISL"]
[TimeControl "40/5400+30:1800+30"]

{[%evp 9,106,25,31,28,41,13,12,13,15,7,18,0,0,0,0,-15,-13,-14,0,0,0,0,0,0,0,-11,0,0,0,-6,0,0,6,15,0,0,31,23,50,52,39,7,7,-35,0,-190,-204,-198,-194,-269,-283,-342,-320,-576,-331,-374,-382,-420,-420,-417,-410,-581,-578,-968,-272,-270,-224,-329,-321,-371,-371,-416,-420,-529,-313,-314,-329,-329,-327,-300,-295,-250,-3,-6,-14,-390,-360,-1110,-1031,-898,-988,-1520,-1408,-29986,-29987,-29987,-29988,-29989,-29990]} 1. e4 {[%emt 0:00:19]} d5 {[%emt 0:04:31]} 2. exd5 {[%emt 0:03:19]} Qxd5 {[%emt 0:00:11]} 3. Nc3 {[%emt 0:01:23]} Qd8 {[%emt 0:00:33]} 4. Nf3 {[%emt 0:01:03]} Bg4 {[%emt 0:00:40]} 5. Bc4 {[%emt 0:01:06]} e6 $1 {[%emt 0:00:55]} 6. O-O {[%emt 0:01:28] B01: Scandinavian Defence.} Nf6 {[%emt 0:05:21]} 7. Be2 {[%emt 0:09:58]} Nbd7 {[%emt 0:07:07]} 8. d4 {[%emt 0:01:18] The position is equal.} c6 {[%emt 0:01:22] [#]} 9. Bf4 $146 {[%emt 0:03:35]} ({Predecessor:} 9. Be3 Be7 10. h3 Bxf3 11. Bxf3 O-O 12. Ne2 Nb6 13. b3 Qc7 14. c4 Rad8 15. Qc2 {0-1 (41) Plotnikov,P (2297)-Ahmadzada,A (2431) Chess.com INT 2021}) 9... Be7 {[%emt 0:03:22]} 10. Nd2 {[%emt 0:03:57]} Bxe2 {[%emt 0:01:29]} 11. Qxe2 {[%emt 0:00:13]} O-O {[%emt 0:01:32]} 12. Nce4 {[%emt 0:02:45]} Qb6 {[%emt 0:04:12]} 13. Nb3 {[%emt 0:10:01]} a5 {[%emt 0:05:12]} 14. a4 {[%emt 0:05:32]} Nxe4 {[%emt 0:02:37]} 15. Qxe4 {[%emt 0:00:07]} Nf6 {[%emt 0:00:10]} 16. Qe2 {[%emt 0:02:07]} Rfd8 {[%emt 0:01:55]} 17. Rfd1 {[%emt 0:01:26]} Rd5 {[%emt 0:06:40]} 18. Be5 {[%emt 0:06:50]} Rad8 {[%emt 0:07:34]} 19. Nd2 {[%emt 0:07:19]} R5d7 {[%emt 0:23:50]} (19... Qxb2 20. Nc4 Qb4 21. Ne3 Rxd4 22. Bxd4 Rxd4 23. Rab1 Qxa4 24. Rxb7 $16) 20. Nc4 {[%emt 0:03:11]} Qa6 {[%emt 0:00:23]} 21. b3 {[%emt 0:03:51]} Nd5 {[%emt 0:00:41]} 22. Rd3 {[%emt 0:03:16]} Bf6 {[%emt 0:00:36]} 23. Rg3 {[%emt 0:02:16]} Bxe5 {[%emt 0:02:01]} 24. Qxe5 {[%emt 0:03:18][%csl Gg3][%cal Re5g7]} (24. dxe5 Ne7 $11) 24... g6 {[%emt 0:00:47]} 25. Nd2 {[%emt 0:00:58] Black must now prevent Ne4.} c5 {[%emt 0:07:13]} 26. c4 {[%emt 0:06:03] Ne4 is the strong threat.} (26. dxc5 $2 Nb4 27. Nf1 Nxc2 $19) (26. Ne4 $5 {[%cal Re4c5]} cxd4 27. Nc5 $11) 26... f6 {[%emt 0:01:17]} (26... Nf4 $5) 27. Qe2 {[%emt 0:02:39]} (27. Qe1 $1 $11 {and White is okay.} Nb4 28. Ne4 Rxd4 29. Nxf6+ (29. Nxc5 $2 Qb6 $19) 29... Kg7 30. Ng4) 27... Nf4 $19 {[%emt 0:00:39]} (27... cxd4 28. Ne4 (28. Qf3 Nc3 $17) 28... Rf7 29. Qg4 $15) 28. Qe1 {[%emt 0:04:45]} cxd4 {[%emt 0:02:57]} 29. Rf3 {[%emt 0:02:08]} (29. Ne4 $142 Rf7 30. Nc5) 29... e5 {[%emt 0:00:26]} 30. Ne4 {[%emt 0:01:02]} Qc6 {[%emt 0:02:41] Prevents Nc5.} 31. g3 $2 {[%emt 0:01:05]} (31. Rd1 {was necessary.}) 31... Nh5 {[%emt 0:00:06] Hoping for ...f5.} 32. g4 {[%emt 0:01:16]} Nf4 {[%emt 0:00:14] Strongly threatening ...d3.} 33. g5 {[%emt 0:00:29]} fxg5 {[%emt 0:00:33]} 34. Nxg5 {[%emt 0:00:21]} h6 {[%emt 0:03:06]} 35. Ne4 {[%emt 0:01:40]} (35. Rxf4 {is the only way for White.} exf4 36. Qe6+ Qxe6 37. Nxe6) 35... d3 {[%emt 0:00:06]} 36. Nd2 {[%emt 0:00:35]} Qf6 {[%emt 0:00:50]} (36... Ne2+ 37. Kf1 Rf7 38. Rxd3 Rxd3 39. Kxe2 Rfd7) 37. Kh1 {[%emt 0:01:38]} Kh7 {[%emt 0:01:23]} (37... Qg5 $2 38. Rg3 Qf6 39. Qe3 $17) 38. Rd1 {[%emt 0:01:44]} (38. Re3 $142) 38... Rd4 {[%emt 0:01:15]} ({Avoid the trap} 38... Qg5 $2 39. Rg3 Qh5 40. Re3 $19) 39. Re3 {[%emt 0:00:42]} Ne2 {[%emt 0:01:55]} ({But not} 39... Qg5 $2 40. Qg1 $19) 40. Nf3 {[%emt 0:01:28] [#]} Re4 {[%emt 0:01:25][%mdl 512]} 41. Qd2 {[%emt 0:06:02]} (41. Nd2 Rg4) 41... Rf4 {[%emt 0:10:11]} 42. Rxd3 {[%emt 0:04:02]} Rxd3 {[%emt 0:03:33]} 43. Qxd3 {[%emt 0:01:34]} Rxf3 {[%emt 0:00:39]} 44. Qxe2 {[%emt 0:01:47]} Rxf2 {[%emt 0:00:33][%mdl 4096] Endgame KQR-KQR} 45. Qd3 {[%emt 0:04:01] [#]} e4 $2 {[%emt 0:07:37]} (45... h5 $1 $19 46. Kg1 Rb2) 46. Qd7+ $11 {[%emt 0:06:11]} Qf7 {[%emt 0:00:07]} 47. Qh3 $2 {[%emt 0:03:00][%mdl 8192] Loses the game.} (47. Qxf7+ $11 {and White stays safe.} Rxf7 48. Rd4) 47... Rf5 $19 {[%emt 0:02:38]} 48. Re1 $2 {[%emt 0:03:50]} (48. Kg1 Qe6 49. Qe3) 48... Rf3 {[%emt 0:01:38]} 49. Qg2 {[%emt 0:00:00]} b6 {[%emt 0:00:27]} 50. Qe2 {[%emt 0:00:00]} Qf4 {[%emt 0:02:11] ( -> ...Rf2)} 51. Rd1 {[%emt 0:01:52]} Rf2 {[%emt 0:01:03][%csl Gf2][%cal Rf4h2] Black mates.} 52. Rd7+ {[%emt 0:02:43]} Kg8 {[%emt 0:00:08][%csl Gf2][%cal Rf4h2]} 53. Rd8+ {[%emt 0:00:51]} Kf7 {[%emt 0:00:08] Weighted Error Value: White=0.84/Black=0.35} 0-1